fUSD/lending_fUSD_20250616
["ID","MTS","AMOUNT","RATE_DAILY","PERIOD"]
[366171717,1750097491192,-193.35277,0.00016461,2]
[366171718,1750097491207,-193.35277,0.00016461,2]
[366171719,1750097491221,-688.876505,0.00016461,2]
[366171720,1750097491238,-688.876505,0.00016461,2]
[366171721,1750097491250,-151.0,0.00016461,2]
[366171722,1750097491263,-151.0,0.00016461,2]
[366171723,1750097491277,-151.0,0.00016461,2]
[366171724,1750097491290,-151.0,0.00016461,2]
[366171725,1750097491303,-151.0,0.00016461,2]
[366171726,1750097491317,-151.0,0.00016461,2]
[366171727,1750097491335,-1044.17,0.00016461,2]
[366171728,1750097491346,-967.07,0.00016461,2]
[366171729,1750097491357,-490.0,0.00016461,2]
[366171730,1750097491369,-490.0,0.00016461,2]
[366171731,1750097491382,-1242.8,0.00016461,2]
[366171732,1750097491400,-315.127537,0.00016461,2]
[366171733,1750097491413,-315.127537,0.00016461,2]
[366171734,1750097491428,-490.0,0.00016461,2]
[366171735,1750097491440,-490.0,0.00016461,2]
[366171736,1750097491456,-490.0,0.00016461,2]
[366171737,1750097491469,-1064.6,0.00016461,2]
[366171738,1750097491482,-818.38,0.00016461,2]
[366171739,1750097491496,-151.0,0.00016461,2]
[366171740,1750097491509,-1034.52,0.00016461,2]
[366171741,1750097491521,-1057.59,0.00016461,2]
[366171742,1750097491535,-490.0,0.00016461,2]
[366171743,1750097491552,-345.868883,0.00016461,2]
[366171744,1750097491566,-490.0,0.00016461,2]
[366171745,1750097491579,-345.868883,0.00016461,2]
[366171746,1750097491595,-282.04685,0.00016461,2]
[366171747,1750097491608,-306.292509,0.00016461,2]
[366171748,1750097491622,-151.0,0.00016461,2]
[366171749,1750097491636,-306.292509,0.00016461,2]
[366171750,1750097491651,-151.0,0.00016461,2]
[366171751,1750097491664,-294.871409,0.00016461,2]
[366171752,1750097491678,-294.871409,0.00016461,2]
[366171753,1750097491691,-417.859807,0.00016461,2]
[366171754,1750097491704,-417.859812,0.00016461,2]
[366171755,1750097491717,-423.936989,0.00016461,2]
[366171756,1750097491731,-423.936989,0.00016461,2]
[366171757,1750097491745,-180.375635,0.00016462,2]
[366171758,1750097491758,-151.0,0.00016462,2]
[366171759,1750097491771,-151.0,0.00016462,2]
[366171760,1750097491784,-210.046608,0.00016462,2]
[366171761,1750097491798,-331.99689195,0.00016474,2]
[366171762,1750097491811,-202.0,0.0001648,2]
[366171763,1750097491826,-153.84221188,0.00016483,2]
[366171764,1750097491839,-4155.92030282,0.00016486,2]
[366171765,1750097491853,-568.26,0.00016489,2]
[366171766,1750097491865,-490.0,0.00016491,2]
[366171767,1750097491879,-150.0,0.00016493,2]
[366171768,1750097491892,-150.0,0.00016493,2]
[366171769,1750097491906,-150.0,0.00016493,2]
[366171770,1750097491920,-150.0,0.00016493,2]
[366171771,1750097491933,-150.0,0.00016493,2]
[366171772,1750097491947,-328.85313476,0.00016499,2]
[366171773,1750097491961,-300.0,0.00016499,2]
[366171774,1750097491974,-300.0,0.00016499,2]
[366171775,1750097491988,-300.0,0.00016499,2]
[366171776,1750097492002,-117561.4420915,0.000165,2]
[366171777,1750097492016,-134599.73596513,0.000165,2]
[366171778,1750097492030,-151.0,0.000165,2]
[366171779,1750097492044,-151.0,0.000165,2]
[366171780,1750097492058,-151.0,0.000165,2]
[366171781,1750097492071,-151.0,0.000165,2]
[366171782,1750097492085,-170.96478,0.000165,2]
[366171783,1750097492097,-269.553904,0.000165,2]
[366171784,1750097492111,-204.529818,0.000165,2]
[366171785,1750097492123,-151.0,0.000165,2]
[366171786,1750097492136,-213.806361,0.000165,2]
[366171787,1750097492149,-213.806361,0.000165,2]
[366171788,1750097492162,-151.0,0.000165,2]
[366171789,1750097492176,-151.0,0.000165,2]
[366171790,1750097492188,-529.193119,0.000165,2]
[366171791,1750097492201,-529.193119,0.000165,2]
[366171792,1750097492214,-225.027572,0.000165,2]
[366171793,1750097492228,-225.027572,0.000165,2]
[366171794,1750097492241,-205.277756,0.000165,2]
[366171795,1750097492254,-481.466804,0.000165,2]
[366171796,1750097492268,-151.0,0.000165,2]
[366171797,1750097492282,-481.466804,0.000165,2]
[366171798,1750097492295,-151.0,0.000165,2]
[366171799,1750097492307,-421.70699,0.000165,2]
[366171800,1750097492321,-421.70699,0.000165,2]
[366171801,1750097492334,-151.0,0.000165,2]
[366171802,1750097492348,-688.876505,0.000165,2]
[366171803,1750097492361,-688.876505,0.000165,2]
[366171804,1750097492374,-151.0,0.000165,2]
[366171805,1750097492388,-151.0,0.000165,2]
[366171806,1750097492401,-151.0,0.000165,2]
[366171807,1750097492414,-151.0,0.000165,2]
[366171808,1750097492428,-315.127537,0.000165,2]
[366171809,1750097492441,-315.127537,0.000165,2]
[366171810,1750097492454,-151.0,0.000165,2]
[366171811,1750097492467,-345.868883,0.000165,2]
[366171812,1750097492480,-345.868885,0.000165,2]
[366171813,1750097492493,-306.292509,0.000165,2]
[366171814,1750097492505,-306.292502,0.000165,2]
[366171815,1750097492518,-294.871409,0.000165,2]
[366171816,1750097492531,-294.871404,0.000165,2]
[366171817,1750097492547,-423.936989,0.000165,2]
[366171818,1750097492559,-423.936996,0.000165,2]
[366171819,1750097492572,-343.25138438,0.00016509,2]
[366171820,1750097492584,-4155.92030282,0.00016521,2]
[366171821,1750097492597,-210.00689634,0.00016526,2]
[366171822,1750097492609,-198.567034,0.00016543,2]
[366171823,1750097492622,-198.567034,0.00016543,2]
[366171824,1750097492634,-228.986909,0.00016543,2]
[366171825,1750097492647,-228.986909,0.00016543,2]
[366171826,1750097492660,-151.0,0.00016543,2]
[366171827,1750097492672,-594.21,0.00016543,2]
[366171828,1750097492685,-685.48,0.00016543,2]
[366171829,1750097492698,-911.86,0.00016543,2]
[366171830,1750097492711,-490.0,0.00016543,2]
[366171831,1750097492725,-554.31,0.00016543,2]
[366171832,1750097492739,-894.67,0.00016543,2]
[366171833,1750097492751,-334.3239555,0.00016543,2]
[366171834,1750097492764,-710.37,0.00016543,2]
[366171835,1750097492777,-4120.71,0.00016543,2]
[366171836,1750097492791,-578.79,0.00016543,2]
[366171837,1750097492804,-562.72,0.00016543,2]
[366171838,1750097492818,-1354.53,0.00016543,2]
[366171839,1750097492832,-607.35,0.00016543,2]
[366171840,1750097492846,-2707.8,0.00016543,2]
[366171841,1750097492859,-490.0,0.00016543,2]
[366171842,1750097492871,-490.0,0.00016543,2]
[366171843,1750097492884,-829.3,0.00016543,2]
[366171844,1750097492896,-2613.83,0.00016543,2]
[366171845,1750097492909,-507.51,0.00016543,2]
[366171846,1750097492922,-796.34,0.00016543,2]
[366171847,1750097492936,-824.05,0.00016543,2]
[366171848,1750097492949,-753.23,0.00016543,2]
[366171849,1750097492961,-641.31,0.00016543,2]
[366171850,1750097492973,-490.0,0.00016543,2]
[366171851,1750097492986,-890.33,0.00016543,2]
[366171852,1750097492998,-151.0,0.00016544,2]
[366171853,1750097493011,-151.0,0.00016544,2]
[366171854,1750097493024,-797.95,0.00016544,2]
[366171855,1750097493038,-300.0,0.00016544,2]
[366171856,1750097493052,-490.0,0.00016544,2]
[366171857,1750097493065,-490.0,0.00016544,2]
[366171858,1750097493079,-490.0,0.00016544,2]
[366171859,1750097493092,-490.0,0.00016544,2]
[366171860,1750097493105,-544.11,0.00016544,2]
[366171861,1750097493119,-250.0,0.00016544,2]
[366171862,1750097493131,-490.0,0.00016544,2]
[366171863,1750097493145,-490.0,0.00016544,2]
[366171864,1750097493157,-159.41,0.00016544,2]
[366171865,1750097493169,-490.0,0.00016544,2]
[366171866,1750097493182,-490.0,0.00016544,2]
[366171867,1750097493195,-718.04,0.00016544,2]
[366171868,1750097493208,-490.0,0.00016544,2]
[366171869,1750097493220,-814.42,0.00016544,2]
[366171870,1750097493233,-490.0,0.00016544,2]
[366171871,1750097493245,-490.0,0.00016544,2]
[366171872,1750097493257,-490.0,0.00016544,2]
[366171873,1750097493271,-490.0,0.00016544,2]
[366171874,1750097493284,-490.0,0.00016544,2]
[366171875,1750097493298,-770.9,0.00016544,2]
[366171876,1750097493311,-490.0,0.00016544,2]
[366171877,1750097493325,-490.0,0.00016544,2]
[366171878,1750097493338,-490.0,0.00016544,2]
[366171879,1750097493351,-490.0,0.00016544,2]
[366171880,1750097493364,-490.0,0.00016544,2]
[366171881,1750097493376,-490.0,0.00016544,2]
[366171882,1750097493389,-490.0,0.00016544,2]
[366171883,1750097493402,-599.87,0.00016544,2]
[366171884,1750097493416,-490.0,0.00016544,2]
[366171885,1750097493430,-490.0,0.00016544,2]
[366171886,1750097493443,-490.0,0.00016544,2]
[366171887,1750097493456,-490.0,0.00016544,2]
[366171888,1750097493469,-756.1,0.00016544,2]
[366171889,1750097493482,-858.35,0.00016544,2]
[366171890,1750097493504,-490.0,0.00016544,2]
[366171891,1750097493518,-490.0,0.00016544,2]
[366171892,1750097493531,-1269.171004,0.00016544,2]
[366171893,1750097493546,-607.91345045,0.00016544,2]
[366171894,1750097493560,-490.0,0.00016544,2]
[366171895,1750097493572,-1156.22,0.00016544,2]
[366171896,1750097493587,-490.0,0.00016544,2]
[366171897,1750097493600,-530.95,0.00016544,2]
[366171898,1750097493612,-490.0,0.00016544,2]
[366171899,1750097493628,-490.0,0.00016544,2]
[366171900,1750097493641,-490.0,0.00016544,2]
[366171901,1750097493656,-490.0,0.00016544,2]
[366171902,1750097493668,-800.605836,0.00016544,2]
[366171903,1750097493682,-826.14,0.00016544,2]
[366171904,1750097493695,-490.0,0.00016544,2]
[366171905,1750097493708,-490.0,0.00016544,2]
[366171906,1750097493720,-490.0,0.00016544,2]
[366171907,1750097493733,-490.0,0.00016544,2]
[366171908,1750097493745,-490.0,0.00016544,2]
[366171909,1750097493758,-490.0,0.00016544,2]
[366171910,1750097493771,-490.0,0.00016544,2]
[366171911,1750097493784,-490.0,0.00016544,2]
[366171912,1750097493797,-490.0,0.00016544,2]
[366171913,1750097493811,-1153.5,0.00016544,2]
[366171914,1750097493825,-300.0,0.00016544,2]
[366171915,1750097493838,-490.0,0.00016544,2]
[366171916,1750097493851,-648.75,0.00016544,2]
[366171917,1750097493865,-992.9,0.00016544,2]
[366171918,1750097493877,-758.65,0.00016544,2]
[366171919,1750097493891,-490.0,0.00016544,2]
[366171920,1750097493904,-490.0,0.00016544,2]
[366171921,1750097493917,-490.0,0.00016544,2]
[366171922,1750097493930,-490.0,0.00016544,2]
[366171923,1750097493943,-490.0,0.00016544,2]
[366171924,1750097493957,-842.2,0.00016544,2]
[366171925,1750097493970,-490.0,0.00016544,2]
[366171926,1750097493983,-490.0,0.00016544,2]
[366171927,1750097493997,-1252.4,0.00016544,2]
[366171928,1750097494011,-490.0,0.00016544,2]
[366171929,1750097494026,-730.56,0.00016544,2]
[366171930,1750097494040,-516.24,0.00016544,2]
[366171931,1750097494052,-989.93,0.00016544,2]
[366171932,1750097494066,-490.0,0.00016544,2]
[366171933,1750097494078,-672.45,0.00016544,2]
[366171934,1750097494092,-1119.59,0.00016544,2]
[366171935,1750097494105,-490.0,0.00016544,2]
[366171936,1750097494117,-718.73,0.00016544,2]
[366171937,1750097494131,-490.0,0.00016544,2]
[366171938,1750097494143,-952.43,0.00016544,2]
[366171939,1750097494156,-490.0,0.00016544,2]
[366171940,1750097494169,-1345.75,0.00016544,2]
[366171941,1750097494183,-490.0,0.00016544,2]
[366171942,1750097494196,-490.0,0.00016544,2]
[366171943,1750097494210,-229.39736527,0.00016544,2]
[366171944,1750097494224,-567.46,0.00016544,2]
[366171945,1750097494236,-490.0,0.00016544,2]
[366171946,1750097494249,-551.79,0.00016544,2]
[366171947,1750097494261,-490.0,0.00016544,2]
[366171948,1750097494274,-490.0,0.00016544,2]
[366171949,1750097494287,-490.0,0.00016544,2]
[366171950,1750097494299,-1135.62,0.00016544,2]
[366171951,1750097494311,-826.68,0.00016544,2]
[366171952,1750097494324,-895.74,0.00016544,2]
[366171953,1750097494336,-4910.71,0.00016544,2]
[366171954,1750097494349,-2461.85,0.00016544,2]
[366171955,1750097494362,-1093.74,0.00016544,2]
[366171956,1750097494374,-490.0,0.00016544,2]
[366171957,1750097494388,-717.88,0.00016544,2]
[366171958,1750097494401,-796.78,0.00016544,2]
[366171959,1750097494414,-625.08,0.00016544,2]
[366171960,1750097494427,-1647.18,0.00016544,2]
[366171961,1750097494440,-543.83,0.00016544,2]
[366171962,1750097494453,-490.0,0.00016544,2]
[366171963,1750097494465,-1130.31,0.00016544,2]
[366171964,1750097494478,-1081.71,0.00016544,2]
[366171965,1750097494492,-1991.64,0.00016544,2]
[366171966,1750097494507,-490.0,0.00016544,2]
[366171967,1750097494521,-829.21,0.00016544,2]
[366171968,1750097494536,-862.87,0.00016544,2]
[366171969,1750097494551,-1235.02,0.00016544,2]
[366171970,1750097494564,-690.88,0.00016544,2]
[366171971,1750097494576,-490.0,0.00016544,2]
[366171972,1750097494591,-1017.88,0.00016544,2]
[366171973,1750097494605,-490.0,0.00016544,2]
[366171974,1750097494620,-1749.64,0.00016544,2]
[366171975,1750097494636,-490.0,0.00016544,2]
[366171976,1750097494650,-490.0,0.00016544,2]
[366171977,1750097494663,-711.65,0.00016544,2]
[366171978,1750097494677,-2184.74,0.00016544,2]
[366171979,1750097494690,-490.0,0.00016544,2]
[366171980,1750097494703,-1526.44,0.00016544,2]
[366171981,1750097494717,-490.0,0.00016544,2]
[366171982,1750097494730,-490.0,0.00016544,2]
[366171983,1750097494743,-1234.25,0.00016544,2]
[366171984,1750097494755,-2114.77,0.00016544,2]
[366171985,1750097494768,-705.05,0.00016544,2]
[366171986,1750097494781,-3019.32,0.00016544,2]
[366171987,1750097494794,-2901.48,0.00016544,2]
[366171988,1750097494807,-490.0,0.00016544,2]
[366171989,1750097494820,-920.09,0.00016544,2]
[366171990,1750097495309,-3394.88,0.00016544,2]
[366171991,1750097495344,-1259.21,0.00016544,2]
[366171992,1750097495355,-747.22,0.00016544,2]
[366171993,1750097495366,-917.9,0.00016544,2]
[366171994,1750097495375,-525.08,0.00016544,2]
[366171995,1750097495385,-881.3,0.00016544,2]
[366171996,1750097495395,-959.79,0.00016544,2]
[366171997,1750097495614,-3957.31,0.00016544,2]
[366171998,1750097495625,-2591.73,0.00016544,2]
[366171999,1750097495636,-490.0,0.00016544,2]
[366172000,1750097495648,-1570.26,0.00016544,2]
[366172001,1750097495658,-1178.34,0.00016544,2]
[366172002,1750097495668,-1249.99,0.00016544,2]
[366172003,1750097495677,-1442.17,0.00016544,2]
[366172004,1750097495687,-816.12,0.00016544,2]
[366172005,1750097495697,-559.14,0.00016544,2]
[366172006,1750097495707,-705.02,0.00016544,2]
[366172007,1750097495718,-1583.7,0.00016544,2]
[366172008,1750097495727,-490.0,0.00016544,2]
[366172009,1750097495737,-660.21,0.00016544,2]
[366172010,1750097495747,-933.55,0.00016544,2]
[366172011,1750097495757,-572.2,0.00016544,2]
[366172012,1750097495767,-1064.83,0.00016544,2]
[366172013,1750097495777,-1877.29,0.00016544,2]
[366172014,1750097495787,-490.0,0.00016544,2]
[366172015,1750097495797,-5808.97,0.00016544,2]
[366172016,1750097495806,-2003.01,0.00016544,2]
[366172017,1750097495816,-490.0,0.00016544,2]
[366172018,1750097495825,-490.0,0.00016544,2]
[366172019,1750097495835,-1016.09,0.00016544,2]
[366172020,1750097495846,-490.0,0.00016544,2]
[366172021,1750097495856,-1379.16,0.00016544,2]
[366172022,1750097495866,-5973.49,0.00016544,2]
[366172023,1750097495876,-556.11,0.00016544,2]
[366172024,1750097495886,-583.93,0.00016544,2]
[366172025,1750097495896,-543.98,0.00016544,2]
[366172026,1750097495906,-2191.82,0.00016544,2]
[366172027,1750097495919,-2541.52,0.00016544,2]
[366172028,1750097495928,-1589.64,0.00016544,2]
[366172029,1750097495939,-1169.98,0.00016544,2]
[366172030,1750097495949,-2216.25,0.00016544,2]
[366172031,1750097495959,-4248.73,0.00016544,2]
[366172032,1750097495970,-490.0,0.00016544,2]
[366172033,1750097495981,-651.19,0.00016544,2]
[366172034,1750097495991,-707.97,0.00016544,2]
[366172035,1750097496002,-1098.11,0.00016544,2]
[366172036,1750097496012,-748.31,0.00016544,2]
[366172037,1750097496023,-695.28,0.00016544,2]
[366172038,1750097496034,-1609.92,0.00016544,2]
[366172039,1750097496043,-986.22,0.00016544,2]
[366172040,1750097496053,-490.0,0.00016544,2]
[366172041,1750097496065,-490.0,0.00016544,2]
[366172042,1750097496075,-908.9,0.00016544,2]
[366172043,1750097496085,-593.17,0.00016544,2]
[366172044,1750097496096,-1730.21,0.00016544,2]
[366172045,1750097496105,-2098.49,0.00016544,2]
[366172046,1750097496115,-1940.76,0.00016544,2]
[366172047,1750097496124,-538.8,0.00016544,2]
[366172048,1750097496134,-597.7,0.00016544,2]
[366172049,1750097496146,-490.0,0.00016544,2]
[366172050,1750097496156,-490.0,0.00016544,2]
[366172051,1750097496167,-1456.14,0.00016544,2]
[366172052,1750097496176,-571.68,0.00016544,2]
[366172053,1750097496186,-706.67,0.00016544,2]
[366172054,1750097496196,-2767.0,0.00016544,2]
[366172055,1750097496206,-2318.25,0.00016544,2]
[366172056,1750097496216,-550.15,0.00016544,2]
[366172057,1750097496226,-569.59,0.00016544,2]
[366172058,1750097496236,-1192.81,0.00016544,2]
[366172059,1750097496246,-561.67,0.00016544,2]
[366172060,1750097496255,-4911.12,0.00016544,2]
[366172061,1750097496266,-13414.35,0.00016544,2]
[366172062,1750097496276,-3575.07,0.00016544,2]
[366172063,1750097496286,-5130.5,0.00016544,2]
[366172064,1750097496296,-490.0,0.00016544,2]
[366172065,1750097496306,-690.53,0.00016544,2]
[366172066,1750097496317,-490.0,0.00016544,2]
[366172067,1750097496328,-490.0,0.00016544,2]
[366172068,1750097496339,-392.46964803,0.00016544,2]
[366172069,1750097496348,-1923.82,0.00016544,2]
[366172070,1750097496358,-490.0,0.00016545,2]
[366172071,1750097496368,-490.0,0.00016545,2]
[366172072,1750097496378,-490.0,0.00016545,2]
[366172073,1750097496388,-985.41,0.00016545,2]
[366172074,1750097496398,-490.0,0.00016545,2]
[366172075,1750097496408,-151.0,0.00016545,2]
[366172076,1750097496418,-490.0,0.00016545,2]
[366172077,1750097496428,-490.0,0.00016545,2]
[366172078,1750097496438,-490.0,0.00016545,2]
[366172079,1750097496448,-490.0,0.00016545,2]
[366172080,1750097496458,-193.35277,0.00016545,2]
[366172081,1750097496468,-490.0,0.00016545,2]
[366172082,1750097496477,-193.35277,0.00016545,2]
[366172083,1750097496487,-490.0,0.00016545,2]
[366172084,1750097496496,-300.0,0.00016545,2]
[366172085,1750097496506,-490.0,0.00016545,2]
[366172086,1750097496516,-635.33,0.00016545,2]
[366172087,1750097496526,-490.0,0.00016545,2]
[366172088,1750097496536,-490.0,0.00016545,2]
[366172089,1750097496548,-490.0,0.00016545,2]
[366172090,1750097496560,-490.0,0.00016545,2]
[366172091,1750097496569,-490.0,0.00016545,2]
[366172092,1750097496579,-490.0,0.00016545,2]
[366172093,1750097496590,-490.0,0.00016545,2]
[366172094,1750097496600,-490.0,0.00016545,2]
[366172095,1750097496611,-454.82757851,0.00016545,2]
[366172096,1750097496621,-842.4,0.00016545,2]
[366172097,1750097496631,-490.0,0.00016545,2]
[366172098,1750097496641,-733.09,0.00016545,2]
[366172099,1750097496651,-490.0,0.00016545,2]
[366172100,1750097496661,-490.0,0.00016545,2]
[366172101,1750097496671,-490.0,0.00016545,2]
[366172102,1750097496683,-490.0,0.00016545,2]
[366172103,1750097496693,-583.56,0.00016545,2]
[366172104,1750097496703,-490.0,0.00016545,2]
[366172105,1750097496714,-907.12,0.00016545,2]
[366172106,1750097496723,-494.22,0.00016545,2]
[366172107,1750097496734,-736.9,0.00016545,2]
[366172108,1750097496744,-490.0,0.00016545,2]
[366172109,1750097496753,-1170.23,0.00016545,2]
[366172110,1750097496764,-490.0,0.00016545,2]
[366172111,1750097496774,-490.0,0.00016545,2]
[366172112,1750097496784,-151.0,0.00016545,2]
[366172113,1750097496796,-490.0,0.00016545,2]
[366172114,1750097496806,-490.0,0.00016545,2]
[366172115,1750097496816,-713.7,0.00016545,2]
[366172116,1750097496826,-775.4,0.00016545,2]
[366172117,1750097496836,-658.16,0.00016545,2]
[366172118,1750097496847,-490.0,0.00016545,2]
[366172119,1750097496857,-490.0,0.00016545,2]
[366172120,1750097496867,-650.98,0.00016545,2]
[366172121,1750097496878,-490.0,0.00016545,2]
[366172122,1750097496888,-727.19,0.00016545,2]
[366172123,1750097496899,-490.0,0.00016545,2]
[366172124,1750097496909,-895.18,0.00016545,2]
[366172125,1750097496919,-153.766351,0.00016545,2]
[366172126,1750097496929,-671.04,0.00016545,2]
[366172127,1750097496940,-509.39,0.00016545,2]
[366172128,1750097496950,-720.72,0.00016545,2]
[366172129,1750097496960,-757.48,0.00016545,2]
[366172130,1750097496970,-490.0,0.00016545,2]
[366172131,1750097496981,-490.0,0.00016545,2]
[366172132,1750097496991,-1126.62,0.00016545,2]
[366172133,1750097497000,-648.98,0.00016545,2]
[366172134,1750097497011,-490.0,0.00016545,2]
[366172135,1750097497021,-490.0,0.00016545,2]
[366172136,1750097497031,-490.0,0.00016545,2]
[366172137,1750097497042,-490.0,0.00016545,2]
[366172138,1750097497052,-524.26,0.00016545,2]
[366172139,1750097497061,-824.61,0.00016545,2]
[366172140,1750097497071,-617.31,0.00016545,2]
[366172141,1750097497081,-649.84,0.00016545,2]
[366172142,1750097497091,-490.0,0.00016545,2]
[366172143,1750097497101,-490.0,0.00016545,2]
[366172144,1750097497110,-1014.9,0.00016545,2]
[366172145,1750097497120,-1044.12,0.00016545,2]
[366172146,1750097497129,-490.0,0.00016545,2]
[366172147,1750097497139,-490.0,0.00016545,2]
[366172148,1750097497148,-490.0,0.00016545,2]
[366172149,1750097497158,-490.0,0.00016545,2]
[366172150,1750097497168,-490.0,0.00016545,2]
[366172151,1750097497178,-1807.42,0.00016545,2]
[366172152,1750097497188,-490.0,0.00016545,2]
[366172153,1750097497197,-1158.78,0.00016545,2]
[366172154,1750097497207,-490.0,0.00016545,2]
[366172155,1750097497217,-490.0,0.00016545,2]
[366172156,1750097497226,-784.75,0.00016545,2]
[366172157,1750097497236,-490.05,0.00016545,2]
[366172158,1750097497247,-551.17,0.00016545,2]
[366172159,1750097497257,-1985.02,0.00016545,2]
[366172160,1750097497266,-275.90047518,0.00016545,2]
[366172161,1750097497276,-962.1,0.00016545,2]
[366172162,1750097497286,-944.05,0.00016545,2]
[366172163,1750097497296,-1472.76,0.00016545,2]
[366172164,1750097497306,-570.62,0.00016545,2]
[366172165,1750097497315,-1022.84,0.00016545,2]
[366172166,1750097497325,-490.0,0.00016545,2]
[366172167,1750097497335,-1527.24,0.00016545,2]
[366172168,1750097497344,-490.0,0.00016545,2]
[366172169,1750097497354,-1465.16,0.00016545,2]
[366172170,1750097497363,-490.0,0.00016545,2]
[366172171,1750097497373,-957.75,0.00016545,2]
[366172172,1750097497382,-490.0,0.00016545,2]
[366172173,1750097497393,-556.13,0.00016545,2]
[366172174,1750097497403,-1212.82,0.00016545,2]
[366172175,1750097497412,-1523.66,0.00016545,2]
[366172176,1750097497422,-490.0,0.00016545,2]
[366172177,1750097497432,-1416.89,0.00016545,2]
[366172178,1750097497442,-1547.23,0.00016545,2]
[366172179,1750097497451,-501.08,0.00016545,2]
[366172180,1750097497461,-1464.74,0.00016545,2]
[366172181,1750097497470,-490.0,0.00016545,2]
[366172182,1750097497480,-924.02,0.00016545,2]
[366172183,1750097497489,-764.62,0.00016545,2]
[366172184,1750097497499,-790.02,0.00016545,2]
[366172185,1750097497509,-490.0,0.00016545,2]
[366172186,1750097497519,-263.4755966,0.00016545,2]
[366172187,1750097497529,-490.0,0.00016545,2]
[366172188,1750097497539,-490.0,0.00016545,2]
[366172189,1750097497553,-490.0,0.00016545,2]
[366172190,1750097497563,-490.0,0.00016545,2]
[366172191,1750097497573,-529.91,0.00016545,2]
[366172192,1750097497583,-853.81,0.00016545,2]
[366172193,1750097497594,-490.0,0.00016545,2]
[366172194,1750097497604,-1168.91,0.00016545,2]
[366172195,1750097497614,-1067.25,0.00016545,2]
[366172196,1750097497624,-2186.48,0.00016545,2]
[366172197,1750097497634,-1153.6,0.00016545,2]
[366172198,1750097497644,-860.46,0.00016545,2]
[366172199,1750097497654,-1749.97,0.00016545,2]
[366172200,1750097497664,-850.36,0.00016545,2]
[366172201,1750097497673,-900.45,0.00016545,2]
[366172202,1750097497685,-1038.07,0.00016545,2]
[366172203,1750097497697,-490.0,0.00016545,2]
[366172204,1750097497708,-2645.85,0.00016545,2]
[366172205,1750097497718,-490.0,0.00016545,2]
[366172206,1750097497727,-981.06,0.00016545,2]
[366172207,1750097497738,-654.46,0.00016545,2]
[366172208,1750097497747,-1120.23,0.00016545,2]
[366172209,1750097497757,-824.25,0.00016545,2]
[366172210,1750097497767,-743.93,0.00016545,2]
[366172211,1750097497778,-1232.36,0.00016545,2]
[366172212,1750097497789,-920.01,0.00016545,2]
[366172213,1750097497799,-816.92,0.00016545,2]
[366172214,1750097497809,-490.0,0.00016545,2]
[366172215,1750097497819,-1520.64,0.00016545,2]
[366172216,1750097497829,-836.03,0.00016545,2]